bitfinex-derivatives/quotes_SOLF0:USTF0_20241025
["timestamp","ask_amount","ask_price","bid_price","bid_amount"]
[1729885496200,12.85598925,168.24,168.13,19.17598925]
[1729885496400,12.85598925,168.24,168.15,2.9774]
[1729885496907,2.9769,168.19,168.15,2.9774]
[1729885498594,12.85598925,168.24,168.15,2.9774]
[1729885498796,2.977,168.18,168.15,2.9774]
[1729885500407,1.1979,168.28,168.19,2.9768]
[1729885500602,12.85598925,168.27,168.19,6.3]
[1729885500802,12.85598925,168.27,168.2,1.2463]
[1729885500995,2.9764,168.22,168.2,1.2463]
[1729885501607,2.9764,168.21,168.2,1.2463]
[1729885501906,12.85598925,168.25,168.19,6.3]
[1729885502607,2.9766,168.21,168.19,6.3]
[1729885505199,12.85598925,168.25,168.19,6.3]
[1729885506208,2.9764,168.22,168.19,6.3]
[1729885507496,12.85598925,168.29,168.19,19.15598925]
[1729885507708,12.85598925,168.31,168.2,2.6107]
[1729885507902,12.85598925,168.31,168.2,3.8566]
[1729885508104,12.85598925,168.29,168.2,3.8566]
[1729885509710,2.9758,168.25,168.21,2.9764]
[1729885511303,2.9759,168.24,168.21,2.9764]
[1729885512210,2.9757,168.26,168.2,3.8566]
[1729885512411,12.85598925,168.29,168.2,3.8566]
[1729885512799,12.85598925,168.31,168.21,12.85598925]
[1729885513107,14.16848925,168.35,168.24,12.85598925]
[1729885513308,12.85598925,168.33,168.25,6.3]
[1729885513909,2.9751,168.29,168.25,6.3]
[1729885514303,12.85598925,168.33,168.25,6.3]
[1729885514510,2.9754,168.27,168.25,6.3]
[1729885514707,12.85598925,168.28,168.25,6.3]
[1729885514907,2.9756,168.26,168.25,6.3]
[1729885516413,2.9754,168.27,168.25,6.3]
[1729885516611,1.3125,168.35,168.25,6.3]
[1729885516612,12.85598925,168.33,168.25,6.3]
[1729885517115,12.85598925,168.31,168.25,6.3]
[1729885518406,2.9755,168.27,168.25,6.3]
[1729885518806,2.9756,168.26,168.25,6.3]
[1729885519010,12.85598925,168.31,168.25,6.3]
[1729885519717,2.9754,168.28,168.25,6.3]
[1729885521215,12.85598925,168.31,168.25,6.3]
[1729885521421,12.85598925,168.33,168.25,6.3]
[1729885521717,2.9752,168.28,168.25,6.3]
[1729885522414,1.3125,168.35,168.2,15.46668925]
[1729885522415,12.85598925,168.3,168.2,15.46668925]
[1729885522616,12.85598925,168.28,168.2,2.6107]
[1729885522814,12.85598925,168.26,168.21,6.3]
[1729885523212,2.9758,168.25,168.2,1.3003]
[1729885523411,12.85598925,168.26,168.2,7.6003]
[1729885524010,2.9759,168.25,168.2,7.6003]
[1729885524216,12.85598925,168.26,168.2,7.6003]
[1729885524614,2.9762,168.23,168.2,7.6003]
[1729885527523,12.85598925,168.26,168.2,7.6003]
[1729885528316,2.9761,168.23,168.2,7.6003]
[1729885528523,8.23338905,168.25,168.2,7.6003]
[1729885528827,2.9754,168.27,168.24,8.23338905]
[1729885529529,2.9754,168.27,168.23,11.20948905]
[1729885529721,8.23338905,168.24,168.2,7.6003]
[1729885530125,2.9762,168.23,168.2,7.6003]
[1729885530728,2.976,168.24,168.2,10.5769]
[1729885532219,12.86596159,168.26,168.2,10.5769]
[1729885532420,2.9761,168.23,168.2,10.5769]
[1729885535133,2.9764,168.22,168.2,7.6003]
[1729885536334,2.9767,168.2,168.17,4.1795]
[1729885536530,2.9767,168.2,168.18,6.26]
[1729885537334,2.9767,168.2,168.18,9.237]
[1729885538033,2.545,168.33,168.18,19.12596159]
[1729885538237,12.86596159,168.32,168.21,12.86596159]
[1729885538443,2.9754,168.27,168.23,12.86596159]
[1729885538733,2.9754,168.27,168.24,9.2358]
[1729885541127,1.3266,168.33,168.24,6.26]
[1729885541331,2.975,168.3,168.26,12.86596159]
[1729885542224,2.9746,168.32,168.26,12.86596159]
[1729885542438,14.17716159,168.4,168.28,12.86596159]
[1729885542632,14.17716159,168.4,168.29,1.3103]
[1729885542832,14.17716159,168.4,168.3,6.26]
[1729885543135,2.9741,168.35,168.3,9.2348]
[1729885543525,2.9742,168.34,168.3,6.26]
[1729885543732,14.17716159,168.4,168.3,19.12596159]
[1729885544837,14.17716159,168.4,168.31,2.9747]
[1729885546342,2.9738,168.36,168.31,2.9747]
[1729885548042,2.9736,168.38,168.31,2.9747]
[1729885548345,14.17716159,168.4,168.31,2.9747]
[1729885548932,2.9739,168.36,168.31,2.9747]
[1729885550039,2.974,168.35,168.31,2.9747]
[1729885551035,1.3176,168.44,168.35,2.9739]
[1729885551236,1.1965,168.46,168.36,6.26]
[1729885551456,1.1965,168.46,168.37,12.86596159]
[1729885551748,1.1965,168.46,168.38,2.9734]
[1729885552142,2.9729,168.42,168.37,17.03726159]
[1729885552347,12.86596159,168.44,168.37,1.1977]
[1729885552643,12.86596159,168.42,168.36,6.26]
[1729885552843,12.86596159,168.4,168.36,6.26]
[1729885553048,2.9736,168.37,168.36,6.26]
[1729885554749,15.83956159,168.37,168.36,6.26]
[1729885555145,12.86596159,168.37,168.31,1.1977]
[1729885555450,2.96546952,168.41,168.27,1.48791388]
[1729885555451,12.86596159,168.35,168.27,1.48791388]
[1729885555648,12.86596159,168.33,168.25,64.24]
[1729885555846,2.9752,168.29,168.26,6.26]
[1729885556040,12.86596159,168.33,168.26,6.26]
[1729885556448,2.9752,168.28,168.26,6.26]
[1729885556648,12.86596159,168.33,168.26,6.26]
[1729885557045,2.9754,168.27,168.26,6.26]
[1729885557553,12.86596159,168.3,168.25,70.48]
[1729885557751,12.86596159,168.3,168.25,6.24]
[1729885558147,12.86596159,168.3,168.15,65.5311]
[1729885558148,2.9762,168.23,168.22,6.24]
[1729885558946,12.86596159,168.28,168.22,6.24]
[1729885559149,2.9758,168.25,168.22,6.24]
[1729885559352,12.86596159,168.3,168.22,6.24]
[1729885559540,2.9756,168.26,168.22,6.24]
[1729885559745,12.86596159,168.3,168.22,6.24]
[1729885559947,12.86596159,168.28,168.22,6.24]
[1729885560141,2.9761,168.24,168.22,6.24]
[1729885560545,12.86596159,168.28,168.22,6.24]
[1729885560748,2.9764,168.22,168.21,6.24]
[1729885560957,12.86596159,168.27,168.21,6.24]
[1729885561648,2.9762,168.23,168.21,6.24]
[1729885561851,12.86596159,168.27,168.21,6.24]
[1729885562045,12.86596159,168.25,168.21,6.24]
[1729885562248,2.9768,168.19,168.18,1.48862006]
[1729885562545,2.9768,168.19,168.16,1.2955]
[1729885562546,12.86596159,168.21,168.16,7.72889688]
[1729885562750,2.9767,168.2,168.16,6.24]
[1729885562953,12.86596159,168.21,168.16,6.24]
[1729885563555,2.9771,168.18,168.16,6.24]
[1729885565051,2.9772,168.17,168.16,6.24]
[1729885565250,12.86596159,168.21,168.1,12.86596159]
[1729885565453,12.86596159,168.16,168.1,6.24]
[1729885565647,12.86596159,168.2,168.1,6.24]
[1729885565648,12.86596159,168.13,168.1,6.24]
[1729885566047,2.9776,168.15,168.1,6.24]
[1729885566355,12.86596159,168.16,168.1,6.24]
[1729885566559,12.86596159,168.16,168.09,6.24]
[1729885566747,2.9783,168.11,168.09,6.24]
[1729885567147,12.86596159,168.16,168.09,6.24]
[1729885567349,12.86596159,168.13,168.06,7.72955921]
[1729885567552,12.86596159,168.11,168.05,64.24]
[1729885567758,12.86596159,168.13,168.05,70.48]
[1729885568258,2.9783,168.11,168.05,73.4593]
[1729885568461,12.86596159,168.13,168.05,70.48]
[1729885569556,12.86596159,168.13,168.02,15.30996159]
[1729885569757,12.86596159,168.11,168.02,2.444]
[1729885569955,2.979,168.07,168.03,6.24]
[1729885570551,2.9782,168.11,168.06,2.9791]
[1729885570756,1.2949,168.12,168.03,7.72988757]
[1729885570959,1.2949,168.12,168.03,6.24]
[1729885571262,2.9785,168.1,168.04,2.9794]
[1729885571854,2.9782,168.11,168.06,2.9789]
[1729885572455,12.86596159,168.13,168.05,2.9792]
[1729885572456,2.9785,168.1,168.05,2.9792]
[1729885573164,12.86596159,168.15,168.04,12.86596159]
[1729885573364,14.15566159,168.18,168.07,12.86596159]
[1729885573565,14.15566159,168.18,168.09,12.86596159]
[1729885573759,14.15566159,168.18,168.1,6.24]
[1729885573964,12.86596159,168.18,168.1,6.24]
[1729885574162,12.86596159,168.18,168.1,7.5497]
[1729885575359,2.9777,168.14,168.1,7.5497]
[1729885575561,12.86596159,168.18,168.1,7.5497]
[1729885575759,1.2753,168.19,168.1,7.5497]
[1729885575961,12.86596159,168.18,168.1,7.5497]
[1729885576461,2.978,168.13,168.1,7.5497]
[1729885577061,2.978,168.13,168.1,6.24]
[1729885577463,12.86596159,168.18,168.1,6.24]
[1729885578766,2.9779,168.13,168.1,6.24]
[1729885580070,12.86596159,168.18,168.1,6.24]
[1729885581360,2.9779,168.13,168.1,6.24]
[1729885582664,12.86596159,168.22,168.1,6.24]
[1729885582860,12.86596159,168.22,168.11,1.286]
[1729885583060,12.86596159,168.22,168.12,12.86596159]
[1729885583258,12.86596159,168.22,168.12,14.14946159]
[1729885583662,2.9768,168.19,168.14,2.9776]
[1729885584060,2.9772,168.17,168.12,17.12736159]
[1729885584459,12.86596159,168.22,168.12,17.12736159]
[1729885584460,12.86596159,168.2,168.12,4.2614]
[1729885585968,2.9773,168.17,168.12,4.2614]
[1729885586268,12.86596159,168.22,168.12,14.14946159]
[1729885586460,2.9768,168.19,168.12,14.14946159]
[1729885587060,2.9768,168.19,168.16,2.9773]
[1729885587374,192.64986051,168.26,168.17,6.22]
[1729885587873,2.977,168.18,168.17,6.22]
[1729885589770,192.64986051,168.26,168.17,6.22]
[1729885590269,2.9764,168.22,168.17,6.22]
[1729885590869,2.9764,168.22,168.18,2.9769]
[1729885591573,12.86596159,168.26,168.19,1.2336]
[1729885592273,12.86596159,168.26,168.19,4.2102]
[1729885592468,2.9762,168.23,168.19,1.2336]
[1729885592972,2.9756,168.26,168.22,2.9762]
[1729885593178,12.86596159,168.29,168.22,2.9762]
[1729885593179,12.86596159,168.29,168.22,6.22]
[1729885593673,2.9759,168.25,168.22,6.22]
[1729885594179,12.86596159,168.29,168.22,6.22]
[1729885594382,12.86596159,168.27,168.22,6.22]
[1729885594873,2.9761,168.23,168.22,6.22]
[1729885598983,12.86596159,168.24,168.17,6.22]
[1729885599274,12.86596159,168.29,168.17,6.22]
[1729885599275,12.86596159,168.19,168.17,6.22]
[1729885599685,2.9771,168.18,168.17,6.22]
[1729885600279,12.86596159,168.19,168.12,6.22]
[1729885600280,2.9779,168.13,168.12,6.22]
[1729885600582,12.86596159,168.14,168.08,64.3]
[1729885600785,12.86596159,168.14,168.09,6.22]
[1729885600975,2.9784,168.1,168.09,6.22]
[1729885601481,2.9784,168.1,168.08,6.22]
[1729885601877,12.86596159,168.14,168.08,6.22]
[1729885602072,12.86596159,168.16,168.1,2.9784]
[1729885602377,12.86596159,168.16,168.08,6.22]
[1729885602378,12.86596159,168.16,168.09,1.3121]
[1729885603080,2.9777,168.14,168.09,4.2905]
[1729885603270,12.86596159,168.18,168.09,1.3121]
[1729885604981,2.9777,168.14,168.09,4.2905]
[1729885605978,12.86596159,168.18,168.09,1.3121]
[1729885606173,2.9774,168.16,168.12,2.978]
[1729885606575,2.9772,168.17,168.13,2.9778]
[1729885606781,12.86596159,168.2,168.09,14.17806159]
[1729885607379,2.9773,168.16,168.12,2.9779]
[1729885607587,12.86596159,168.18,168.09,14.17806159]
[1729885607780,12.86596159,168.18,168.09,1.3121]
[1729885608082,12.86596159,168.16,168.09,1.3121]
[1729885608674,12.86596159,168.14,168.09,6.22]
[1729885608877,2.9788,168.08,168.03,4.204]
[1729885609079,12.86596159,168.11,168.04,6.22]
[1729885609575,2.9789,168.07,168.04,6.22]
[1729885609785,12.86596159,168.11,168.04,9.1993]
[1729885609987,12.86596159,168.13,168.04,6.22]
[1729885610887,2.9788,168.08,168.04,9.1994]
[1729885612591,2.9785,168.1,168.04,6.22]
[1729885612786,12.86596159,168.2,168.04,6.22]
[1729885612787,5.9517,168.25,168.08,12.86596159]
[1729885613089,2.9776,168.15,168.11,2.9782]
[1729885613388,2.9776,168.15,168.08,12.86596159]
[1729885613389,12.86596159,168.19,168.12,6.22]
[1729885613695,2.9775,168.16,168.12,6.22]
[1729885613905,12.86596159,168.19,168.12,6.22]
[1729885614099,2.9777,168.15,168.12,6.22]
[1729885617300,12.86596159,168.22,168.12,6.22]
[1729885617495,12.86596159,168.2,168.12,6.22]
[1729885617899,12.86596159,168.17,168.12,6.22]
[1729885618599,2.9777,168.14,168.12,6.22]
[1729885619300,12.86596159,168.15,168.1,1.2701]
[1729885619506,12.86596159,168.15,168.09,6.18]
[1729885619803,2.9786,168.1,168.09,6.18]
[1729885620498,2.9786,168.1,168.03,12.86596159]
[1729885620698,2.9786,168.1,168.04,6.18]
[1729885621299,2.9786,168.1,168.06,2.9791]
[1729885622021,12.86596159,168.18,168.06,12.86596159]
[1729885622222,12.86596159,168.18,168.07,3.7927]
[1729885622714,12.86596159,168.18,168.1,2.9782]
[1729885622918,12.86596159,168.18,168.11,6.18]
[1729885624020,2.9777,168.14,168.11,6.18]
[1729885624221,12.86596159,168.2,168.13,2.9778]
[1729885625012,12.86596159,168.2,168.11,6.18]
[1729885625214,12.86596159,168.2,168.11,9.1581]
[1729885625413,12.86596159,168.2,168.11,6.18]
[1729885625815,2.9777,168.14,168.11,6.18]
[1729885626517,2.978,168.12,168.11,6.18]
[1729885626919,12.86596159,168.15,168.11,6.18]
[1729885627113,2.9774,168.16,168.11,6.18]
[1729885627421,1.2366,168.23,168.13,12.86596159]
[1729885627721,12.86596159,168.24,168.15,12.86596159]
[1729885627913,12.86596159,168.24,168.15,14.09206159]
[1729885628315,12.86596159,168.24,168.15,17.06956159]
[1729885628711,2.9762,168.23,168.18,2.9769]
[1729885628913,1.2366,168.3,168.17,12.86596159]
[1729885628914,12.86596159,168.29,168.19,6.18]
[1729885630117,2.9759,168.24,168.19,6.18]
[1729885630325,20.58197351,168.29,168.19,6.18]
[1729885630822,1.2366,168.3,168.19,6.18]
[1729885630823,20.58197351,168.27,168.19,6.18]
[1729885631124,2.9766,168.2,168.19,6.18]
[1729885631824,20.58197351,168.27,168.19,6.18]
[1729885632217,1.2366,168.3,168.19,6.18]
[1729885632218,20.58197351,168.29,168.19,6.18]
[1729885632427,20.58197351,168.32,168.19,6.18]
[1729885632924,2.9757,168.26,168.21,2.9764]
[1729885633125,20.58197351,168.32,168.19,6.18]
[1729885634215,2.9757,168.25,168.2,2.9766]
[1729885634424,2.9757,168.25,168.21,1.3199]
[1729885634927,2.9759,168.24,168.21,1.3199]
[1729885637324,2.9763,168.22,168.21,1.3199]
[1729885637924,2.9762,168.23,168.21,1.3199]
[1729885640422,2.9763,168.22,168.21,1.3199]
[1729885642523,2.9763,168.22,168.21,6.18]
[1729885643129,1.2128,168.33,168.21,6.18]
[1729885643428,179.68040913,168.36,168.26,20.58197351]
[1729885643633,179.68040913,168.36,168.27,6.18]
[1729885643837,2.9746,168.32,168.28,2.975]
[1729885644022,179.68040913,168.36,168.28,2.975]
[1729885644427,179.68040913,168.36,168.27,6.18]
[1729885644628,179.68040913,168.36,168.29,2.975]
[1729885644927,2.9745,168.33,168.29,2.975]
[1729885645133,179.68040913,168.36,168.28,2.9751]
[1729885645927,23.06917351,168.41,168.29,20.58197351]
[1729885646122,23.06917351,168.41,168.3,2.5226]
[1729885646123,2.4872,168.41,168.3,2.5226]
[1729885646528,2.9742,168.34,168.3,5.4974]
[1729885649633,2.4872,168.41,168.3,2.5226]
[1729885649834,1.3049,168.45,168.31,20.58197351]
[1729885650333,179.56756963,168.47,168.37,20.58197351]
[1729885650529,179.56756963,168.47,168.38,6.16]
[1729885650734,179.56756963,168.47,168.38,8.6203]
[1729885651135,20.58197351,168.46,168.38,6.16]
[1729885651938,2.9736,168.37,168.32,2.9745]
[1729885652141,2.9736,168.37,168.33,6.16]
[1729885652537,2.9738,168.36,168.33,6.16]
[1729885653443,1.2181,168.45,168.34,20.58197351]
[1729885653444,2.9733,168.39,168.34,20.58197351]
[1729885654040,2.9735,168.38,168.34,23.55607351]
[1729885657445,1.2181,168.45,168.33,6.16]
[1729885657645,20.58197351,168.43,168.31,23.02637351]
[1729885657948,20.58197351,168.43,168.32,6.16]
[1729885658149,2.9741,168.35,168.32,6.16]
[1729885659341,1.2181,168.45,168.3,1.3232]
[1729885659342,20.58197351,168.41,168.3,1.3232]
[1729885659542,20.58197351,168.41,168.28,20.58197351]
[1729885659543,20.58197351,168.38,168.31,6.16]
[1729885660049,2.9745,168.32,168.31,6.16]
[1729885660847,2.9752,168.28,168.25,2.5892]
[1729885661043,1.2172,168.37,168.26,26.74197351]
[1729885661445,1.2172,168.37,168.28,2.9752]
[1729885661752,1.2172,168.37,168.26,26.74197351]
[1729885663351,21.79917351,168.37,168.26,6.16]
[1729885664138,2.9749,168.3,168.26,9.1354]
[1729885664351,2.9749,168.3,168.26,22.00135137]
[1729885664551,2.9749,168.3,168.26,19.02595137]
[1729885665149,2.9749,168.3,168.27,6.16]
[1729885665348,2.9747,168.31,168.27,6.16]
[1729885665942,14.08315137,168.37,168.29,15.84085137]
[1729885665943,2.9744,168.33,168.29,15.84085137]
[1729885666346,14.08315137,168.37,168.27,6.16]
[1729885667950,2.975,168.3,168.27,6.16]
[1729885668639,2.975,168.3,168.27,9.1353]
[1729885669941,2.9752,168.28,168.27,6.16]
[1729885670651,2.9751,168.29,168.27,6.16]
[1729885671350,12.86595137,168.32,168.24,64.26]
[1729885671561,2.9757,168.25,168.24,64.26]
[1729885671852,2.9757,168.25,168.24,6.16]
[1729885672241,21.86190364,168.33,168.24,6.16]
[1729885674154,2.9757,168.26,168.24,6.16]
[1729885674358,2.9757,168.26,168.25,6.16]
[1729885678352,2.9755,168.27,168.25,6.16]
[1729885679950,21.86190364,168.33,168.25,6.16]
[1729885680148,20.57320364,168.28,168.18,1.3048]
[1729885680453,20.57320364,168.28,168.19,6.14]
[1729885680454,1.2434,168.27,168.19,6.14]
[1729885681055,2.9763,168.22,168.19,6.14]
[1729885681251,1.2434,168.27,168.19,6.14]
[1729885682052,21.86190364,168.33,168.19,26.71320364]
[1729885682251,1.3245,168.32,168.19,26.71320364]
[1729885682457,1.3245,168.32,168.21,2.9764]
[1729885682652,20.57320364,168.3,168.19,6.14]
[1729885682857,20.57320364,168.27,168.19,6.14]
[1729885683557,1.3146,168.26,168.16,1.2909]
[1729885683756,2.9771,168.17,168.14,64.22]
[1729885683956,21.89770364,168.25,168.15,6.14]
[1729885684357,1.3245,168.25,168.15,6.14]
[1729885685756,1.3245,168.25,168.16,2.9773]
[1729885686454,1.3245,168.25,168.15,9.1175]
[1729885687455,2.9767,168.2,168.16,2.9773]
[1729885687655,1.3245,168.25,168.15,8.7571]
[1729885687863,2.9772,168.17,168.15,6.14]
[1729885688058,1.3245,168.25,168.15,6.14]
[1729885688059,20.57320364,168.22,168.15,6.14]
[1729885689265,2.9773,168.16,168.15,6.14]
[1729885689761,21.89770364,168.25,168.15,6.14]
[1729885689956,2.9768,168.2,168.15,9.1174]
[1729885690761,2.9768,168.19,168.15,9.1174]
[1729885691262,2.9773,168.17,168.15,6.14]
[1729885691464,2.9773,168.17,168.12,1.31]
[1729885691465,20.57320364,168.23,168.08,20.57320364]
[1729885691667,20.57320364,168.2,168.07,3.8671]
[1729885691865,20.57320364,168.2,168.08,6.14]
[1729885692367,20.57320364,168.2,168.07,3.8671]
[1729885692669,20.57320364,168.18,168.08,6.14]
[1729885692856,2.5011,168.17,168.08,6.14]
[1729885693063,2.5011,168.17,168.04,64.26]
[1729885693270,2.5011,168.17,168.05,6.14]
[1729885693457,2.9789,168.08,168.05,6.14]
[1729885693771,20.57320364,168.15,168.05,6.14]
[1729885694164,2.9786,168.09,168.05,9.1192]
[1729885694469,20.57320364,168.15,168.05,6.14]
[1729885694766,23.07430364,168.17,168.05,6.14]
[1729885695558,2.5011,168.17,168.07,20.57320364]
[1729885695860,64.26,168.28,168.09,20.57320364]
[1729885696060,20.57320364,168.23,168.1,6.14]
[1729885696263,2.9775,168.15,168.11,2.9781]
[1729885700372,3.6836,168.26,168.14,20.57320364]
[1729885700573,24.25680364,168.26,168.11,20.57320364]
[1729885701280,20.57320364,168.22,168.1,6.14]
[1729885701973,2.9776,168.15,168.1,6.14]
[1729885702176,20.57320364,168.22,168.1,6.14]
[1729885702472,20.57320364,168.22,168.12,2.9779]
[1729885702473,2.9775,168.16,168.12,2.9779]
[1729885703375,2.9775,168.16,168.12,2.978]
[1729885703572,2.9768,168.19,168.12,2.978]
[1729885703874,20.57320364,168.22,168.1,6.14]
[1729885704064,20.57320364,168.22,168.1,9.1183]
[1729885704264,2.9769,168.19,168.1,9.1183]
[1729885704576,20.57320364,168.22,168.1,9.1183]
[1729885705078,20.57320364,168.19,168.09,4.10669554]
[1729885705374,23.49919629,168.19,168.1,6.14]
[1729885705564,2.9782,168.11,168.1,6.14]
[1729885706063,20.57320364,168.17,168.05,4.00359554]
[1729885706269,21.79840364,168.17,168.06,6.14]
[1729885706669,20.57320364,168.14,168.05,2.73099554]
[1729885706866,20.57320364,168.14,168.06,6.14]
[1729885707082,20.57320364,168.14,168.07,6.14]
[1729885707678,2.9787,168.08,168.07,6.14]
[1729885709080,21.79840364,168.17,168.07,6.14]
[1729885709278,2.5407,168.18,168.1,2.9783]
[1729885709576,20.57320364,168.2,168.1,2.9783]
[1729885709777,20.57320364,168.2,168.09,2.9785]
[1729885710083,20.57320364,168.2,168.08,2.4947]
[1729885710084,23.60153285,168.2,168.08,2.4947]
[1729885710275,2.9783,168.11,168.08,2.4947]
[1729885710672,20.57320364,168.17,168.08,2.4947]
[1729885710879,2.9784,168.1,168.07,6.14]
[1729885711574,20.57320364,168.17,168.07,6.14]
[1729885711777,4.36761883,168.19,168.07,6.14]
[1729885711778,2.9782,168.12,168.07,6.14]
[1729885711977,4.36761883,168.19,168.07,6.14]
[1729885712177,4.36761883,168.19,168.08,2.9786]
[1729885712976,20.57320364,168.2,168.07,6.14]
[1729885713182,1.287,168.22,168.11,20.57320364]
[1729885713383,1.287,168.22,168.12,12.8673]
[1729885713384,2.9775,168.16,168.12,12.8673]
[1729885713573,20.57320364,168.2,168.13,6.12]
[1729885713985,2.9777,168.15,168.13,6.12]
[1729885714470,20.57320364,168.2,168.13,6.12]
[1729885715073,1.287,168.22,168.13,6.12]
[1729885715273,1.2301,168.24,168.13,6.12]
[1729885715585,20.57320364,168.26,168.16,2.9772]
[1729885716083,2.9767,168.2,168.16,2.9772]
[1729885716482,20.57320364,168.26,168.16,2.9772]
[1729885717277,20.57320364,168.26,168.14,20.57320364]
[1729885717479,2.9764,168.22,168.14,20.57320364]
[1729885717981,20.57320364,168.26,168.18,2.9769]
[1729885718181,2.9765,168.21,168.19,6.12]
[1729885719183,2.9766,168.2,168.19,6.12]
[1729885720481,20.57320364,168.26,168.19,6.12]
[1729885720684,3.716,168.28,168.19,6.12]
[1729885720987,2.4242,168.28,168.19,6.12]
[1729885722286,2.9764,168.22,168.19,6.12]
[1729885723079,2.9766,168.2,168.19,6.12]
[1729885723383,20.57320364,168.26,168.19,6.12]
[1729885723679,5.9495,168.31,168.19,6.12]
[1729885723881,20.57320364,168.31,168.2,1.2096]
[1729885724082,20.57320364,168.31,168.2,2.4763]
[1729885724389,1.2017,168.32,168.21,1.3195]
[1729885724579,20.57320364,168.33,168.21,1.3195]
[1729885724786,20.57320364,168.33,168.22,20.57320364]
[1729885725586,2.9749,168.3,168.24,2.9758]
[1729885725777,20.57320364,168.33,168.25,6.12]
[1729885726278,2.9756,168.26,168.25,6.12]
[1729885735399,12.85933193,168.3,168.21,1.3195]
[1729885735701,2.976,168.24,168.22,6.1]
[1729885735896,12.85933193,168.3,168.22,6.1]
[1729885736497,12.85933193,168.3,168.22,9.0762]
[1729885736792,2.9757,168.26,168.22,9.0762]
[1729885738008,12.85933193,168.3,168.22,9.0762]
[1729885738210,2.9758,168.25,168.22,9.0762]
[1729885739011,2.976,168.24,168.22,6.1]
[1729885739704,2.9761,168.23,168.22,6.1]
[1729885740805,12.85933193,168.26,168.19,1.48860074]
[1729885741006,12.85933193,168.23,168.18,1.48860074]
[1729885741213,12.85933193,168.26,168.18,6.08]
[1729885741510,2.9763,168.23,168.18,6.08]
[1729885741807,12.85933193,168.26,168.18,6.08]
[1729885741808,12.85933193,168.26,168.19,2.9767]
[1729885742007,2.976,168.24,168.18,6.08]
[1729885742209,12.85933193,168.26,168.18,6.08]
[1729885742413,12.85933193,168.26,168.18,9.0568]
[1729885743015,2.9764,168.22,168.18,9.0568]
[1729885743511,12.85933193,168.26,168.18,9.0568]
[1729885743815,2.9768,168.19,168.18,6.08]
[1729885745010,2.9763,168.23,168.18,9.0568]
[1729885745312,12.85933193,168.26,168.18,6.08]
[1729885745705,12.85933193,168.23,168.18,6.08]
[1729885746105,2.977,168.18,168.14,2.9777]
[1729885746401,2.977,168.18,168.17,70.36]
[1729885746611,12.85933193,168.23,168.17,70.36]
[1729885747106,2.9764,168.22,168.17,70.36]
[1729885747311,2.4587,168.28,168.18,12.85933193]
[1729885747612,2.4587,168.28,168.19,1.48877264]
[1729885747802,2.4587,168.28,168.18,12.85933193]
[1729885748105,12.85933193,168.19,168.13,2.541]
[1729885748304,12.85933193,168.19,168.14,7.56911517]
[1729885748507,2.9773,168.17,168.14,6.08]
[1729885749514,2.9773,168.17,168.13,2.541]
[1729885749812,2.9773,168.17,168.14,7.5691669]
[1729885750006,2.9773,168.17,168.14,6.08]
[1729885751411,12.85933193,168.21,168.14,6.08]
[1729885751612,2.9774,168.16,168.14,6.08]
[1729885751914,12.85933193,168.19,168.14,6.08]
[1729885752214,2.9775,168.15,168.14,6.08]
[1729885756721,12.85933193,168.23,168.14,6.08]
[1729885756921,1.3134,168.27,168.14,6.08]
[1729885757122,12.85933193,168.25,168.15,16.91886701]
[1729885757320,1.3134,168.27,168.17,12.85933193]
[1729885757614,12.85933193,168.29,168.18,1.48894915]
[1729885757820,12.85933193,168.29,168.19,6.08]